{"text_format":"3","workbook":"xlsx","n_sheets":2,"sheets":["ΤΡΟΠΟΣ ΧΡΗΣΗΣ ΤΟΥ ΠΡΟΤΥΠΟΥ","ΒΑΘΜΟΛΟΓΙΟ"],"not_rendered":{"defined_names":7},"read":"whole","date_system":"1900"}

{"sheet":"ΤΡΟΠΟΣ ΧΡΗΣΗΣ ΤΟΥ ΠΡΟΤΥΠΟΥ","index":0,"n_rows":10,"n_cols":2,"rows_kept":10}
[null,"ΟΔΗΓΊΕΣ"]
[null,"Χρησιμοποιήστε το φύλλο εργασίας ΒΑΘΜΟΛΟΓΙΟ για να υπολογίσετε τους βαθμούς, όπου κάθε εργασία λαμβάνει έναν καθορισμένο αριθμό βαθμών. "]
[null,"Οδηγίες: Μην παραλείπετε να αποθηκεύετε αντίγραφα ασφαλείας των βαθμών."]
[null,"1. Συμπληρώστε το όνομα του σχολείου, πληροφορίες τάξης, ονόματα μαθητών και κωδικούς μαθητών (προαιρετικό). "]
[null,"2. Προσαρμόστε τον πίνακα βαθμών σύμφωνα με το τυπικό σύστημα βαθμολογίας που χρησιμοποιείτε."]
[null,"3. Συμπληρώστε τα ονόματα των εργασιών, κουίζ ή τεστ που χρησιμοποιείτε (π.χ., \"Τεστ 1\") ξεκινώντας από το κελί H8, καθώς και τους βαθμούς που λαμβάνει κάθε εργασία. "]
[null,"4. Συμπληρώστε τις βαθμολογίες για κάθε μαθητή για κάθε εργασία ή τεστ. Οι στήλες \"Μέσος όρος\", \"Βαθμολογία\", \"Βαθμός με γράμμα\" και \"GPA\" υπολογίζονται αυτόματα, αλλά μπορείτε να τα αντικαταστήσετε, εάν θέλετε. Για να απονείμετε επιπλέον βαθμούς, απλώς δώστε περισσότερους βαθμούς σε μια εργασία από τους συνολικούς δυνατούς βαθμούς για αυτή την εργασία."]
[null,"Εάν θέλετε να αλλάξετε αυτό που θα εκτυπωθεί, χρησιμοποιήστε την εντολή \"Περιοχή εκτύπωσης\" στο μενού \"Διάταξη σελίδας\"."]
[null,"Οι βαθμολογίες βασίζονται σε μια τυπική ποσοστιαία κλίμακα σύμφωνα με τον συνολικό αριθμό βαθμών που έχουν εκχωρηθεί στις γραμμές 8 και 9. Προσαρμόστε κάθε ανάθεση ή δοκιμή στα επιθυμητά σημεία και, στη συνέχεια, προσαρμόστε το ποσοστό με τον κατάλληλο βαθμό. Για να κάνετε μη αυτόματες αλλαγές, αντικαταστήστε τα κελιά βαθμολογίας."]
[null,"Εισαγάγετε κάθε εργασία, κουίζ ή τεστ και τους βαθμούς που λαμβάνει στα κελιά H8 σε X9."]

{"sheet":"ΒΑΘΜΟΛΟΓΙΟ","index":1,"n_rows":24,"n_cols":24,"rows_kept":24,"merged":[[1,1,2,6],[3,1,3,6],[4,1,6,6],[7,4,7,6],[8,4,8,6],[10,4,10,6],[11,4,11,6],[20,1,20,2],[20,3,20,4],[21,1,21,2],[21,3,21,4],[22,1,22,2],[22,3,22,4],[23,1,23,2],[23,3,23,4]]}
[null,"ΤΟ ΟΝΟΜΑ ΤΟΥ ΣΧΟΛΕΙΟΥ ΣΑΣ"]
[null,"Όνομα καθηγητή"]
[{"$nulls":7},"Βαθμολογία",{"$f":"I4*ΣύνολοΒαθμών","v":118},120,126,134,140,{"v":145.6666666666666,"d":"146"},154,160,166,174,180,186,194]
[null,"Τάξη/Εργασία",{"$nulls":5},"%",{"v":0.59,"d":"59%"},{"v":0.6,"d":"60%"},{"v":0.63,"d":"63%"},{"v":0.67,"d":"67%"},{"v":0.7,"d":"70%"},{"v":0.728333333333333,"d":"73%"},{"v":0.77,"d":"77%"},{"v":0.8,"d":"80%"},{"v":0.83,"d":"83%"},{"v":0.87,"d":"87%"},{"v":0.9,"d":"90%"},{"v":0.93,"d":"93%"},{"v":0.97,"d":"97%"}]
[null,"Έτος/Εξάμηνο/Τρίμηνο",{"$nulls":5},"Βαθμός με γράμμα","ΣΤ","Δ-","Δ","Δ+","Γ-","Γ","Γ+","Β-","Β","B+","A-","Α","A+"]
[{"$nulls":7},"GPA",0,0.67,1,1.33,1.67,2,2.33,2.67,3,3.33,3.67,4,4]
[]
[{"$nulls":4},"Όνομα εργασίας ή τεστ",null,null,"ΕΣ1","ΕΣ2","ΤΡ1"]
[{"$nulls":4},"Συνολικοί διαθέσιμοι βαθμοί:",null,null,50,50,100]
[]
[{"$nulls":4},"Συνολικός αριθμός εργασιών και τεστ:",null,null,{"$f":"COUNTA(H8:AH8)","v":3}]
[{"$nulls":4},"Συνολικοί δυνατοί βαθμοί:",null,null,{"$f":"SUM(H9:AH9)","v":200}]
[]
[null,"Όνομα μαθητή","Κωδικός μαθητή","Μέσος όρος","Βαθμολογία","Βαθμός με γράμμα","GPA","Στήλη6","Στήλη7","Στήλη8","Στήλη9","Στήλη10","Στήλη11","Στήλη12","Στήλη13","Στήλη14","Στήλη15","Στήλη16","Στήλη17","Στήλη18","Στήλη19","Στήλη20","Στήλη21","Στήλη22"]
[null,"Αριθμός μαθητή 1",null,{"$f":"IFERROR(IF(COUNT(Βαθμολογίες[[#This Row],[Στήλη6]:[Στήλη22]])=0,\"\",SUM(Βαθμολογίες[[#This Row],[Στήλη6]:[Στήλη22]])/ΣύνολοΒαθμών),\"\")","v":{"v":0.91,"d":"91.0%"}},{"$f":"IF(COUNT(Βαθμολογίες[[#This Row],[Στήλη6]:[Στήλη22]])=0,\"\",SUM(Βαθμολογίες[[#This Row],[Στήλη6]:[Στήλη22]]))","v":182},{"$f":"IFERROR(IF(Βαθμολογίες[[#This Row],[Μέσος όρος]]<>\"\",HLOOKUP(Βαθμολογίες[[#This Row],[Μέσος όρος]]*ΣύνολοΒαθμών,ΠίνακαςΒαθμών,3),\"\"),0)","v":"A-"},{"$f":"IFERROR(IF(Βαθμολογίες[[#This Row],[Μέσος όρος]]<>\"\",HLOOKUP(Βαθμολογίες[[#This Row],[Μέσος όρος]]*ΣύνολοΒαθμών,ΠίνακαςΒαθμών,4),\"\"),0)","v":3.67},45,45,92]
[null,"Αριθμός μαθητή 2",null,{"$f":"IFERROR(IF(COUNT(Βαθμολογίες[[#This Row],[Στήλη6]:[Στήλη22]])=0,\"\",SUM(Βαθμολογίες[[#This Row],[Στήλη6]:[Στήλη22]])/ΣύνολοΒαθμών),\"\")","v":{"v":1,"d":"100.0%"}},{"$f":"IF(COUNT(Βαθμολογίες[[#This Row],[Στήλη6]:[Στήλη22]])=0,\"\",SUM(Βαθμολογίες[[#This Row],[Στήλη6]:[Στήλη22]]))","v":200},{"$f":"IFERROR(IF(Βαθμολογίες[[#This Row],[Μέσος όρος]]<>\"\",HLOOKUP(Βαθμολογίες[[#This Row],[Μέσος όρος]]*ΣύνολοΒαθμών,ΠίνακαςΒαθμών,3),\"\"),0)","v":"A+"},{"$f":"IFERROR(IF(Βαθμολογίες[[#This Row],[Μέσος όρος]]<>\"\",HLOOKUP(Βαθμολογίες[[#This Row],[Μέσος όρος]]*ΣύνολοΒαθμών,ΠίνακαςΒαθμών,4),\"\"),0)","v":{"v":4,"d":"4.00"}},50,50,100]
[{"$nulls":3},{"$f":"IFERROR(IF(COUNT(Βαθμολογίες[[#This Row],[Στήλη6]:[Στήλη22]])=0,\"\",SUM(Βαθμολογίες[[#This Row],[Στήλη6]:[Στήλη22]])/ΣύνολοΒαθμών),\"\")","v":""},{"$f":"IF(COUNT(Βαθμολογίες[[#This Row],[Στήλη6]:[Στήλη22]])=0,\"\",SUM(Βαθμολογίες[[#This Row],[Στήλη6]:[Στήλη22]]))","v":""},{"$f":"IFERROR(IF(Βαθμολογίες[[#This Row],[Μέσος όρος]]<>\"\",HLOOKUP(Βαθμολογίες[[#This Row],[Μέσος όρος]]*ΣύνολοΒαθμών,ΠίνακαςΒαθμών,3),\"\"),0)","v":""},{"$f":"IFERROR(IF(Βαθμολογίες[[#This Row],[Μέσος όρος]]<>\"\",HLOOKUP(Βαθμολογίες[[#This Row],[Μέσος όρος]]*ΣύνολοΒαθμών,ΠίνακαςΒαθμών,4),\"\"),0)","v":""}]
[{"$nulls":3},{"$f":"IFERROR(IF(COUNT(Βαθμολογίες[[#This Row],[Στήλη6]:[Στήλη22]])=0,\"\",SUM(Βαθμολογίες[[#This Row],[Στήλη6]:[Στήλη22]])/ΣύνολοΒαθμών),\"\")","v":""},{"$f":"IF(COUNT(Βαθμολογίες[[#This Row],[Στήλη6]:[Στήλη22]])=0,\"\",SUM(Βαθμολογίες[[#This Row],[Στήλη6]:[Στήλη22]]))","v":""},{"$f":"IFERROR(IF(Βαθμολογίες[[#This Row],[Μέσος όρος]]<>\"\",HLOOKUP(Βαθμολογίες[[#This Row],[Μέσος όρος]]*ΣύνολοΒαθμών,ΠίνακαςΒαθμών,3),\"\"),0)","v":""},{"$f":"IFERROR(IF(Βαθμολογίες[[#This Row],[Μέσος όρος]]<>\"\",HLOOKUP(Βαθμολογίες[[#This Row],[Μέσος όρος]]*ΣύνολοΒαθμών,ΠίνακαςΒαθμών,4),\"\"),0)","v":""}]
[{"$nulls":3},{"$f":"IFERROR(IF(COUNT(Βαθμολογίες[[#This Row],[Στήλη6]:[Στήλη22]])=0,\"\",SUM(Βαθμολογίες[[#This Row],[Στήλη6]:[Στήλη22]])/ΣύνολοΒαθμών),\"\")","v":""},{"$f":"IF(COUNT(Βαθμολογίες[[#This Row],[Στήλη6]:[Στήλη22]])=0,\"\",SUM(Βαθμολογίες[[#This Row],[Στήλη6]:[Στήλη22]]))","v":""},{"$f":"IFERROR(IF(Βαθμολογίες[[#This Row],[Μέσος όρος]]<>\"\",HLOOKUP(Βαθμολογίες[[#This Row],[Μέσος όρος]]*ΣύνολοΒαθμών,ΠίνακαςΒαθμών,3),\"\"),0)","v":""},{"$f":"IFERROR(IF(Βαθμολογίες[[#This Row],[Μέσος όρος]]<>\"\",HLOOKUP(Βαθμολογίες[[#This Row],[Μέσος όρος]]*ΣύνολοΒαθμών,ΠίνακαςΒαθμών,4),\"\"),0)","v":""}]
[]
[null,"Σύνοψη τάξης",null,"Μέσος όρος",null,"Βαθμός με γράμμα","GPA","","","","","","","","","","",""]
[null," Μέσος όρος",null,{"$f":"IFERROR(AVERAGE(Βαθμολογίες[[#All],[Μέσος όρος]]),0)","v":{"v":0.9550000000000001,"d":"95.5%"}},null,{"$f":"IFERROR(HLOOKUP(D22*ΣύνολοΒαθμών,ΠίνακαςΒαθμών,3),\"\")","v":"Α"},{"$f":"IFERROR(AVERAGE(Βαθμολογίες[[#All],[GPA]]),0)","v":{"v":3.835,"d":"3.84"}},"","","","","","","","","","","","","","","","",""]
[null," Υψηλότερη βαθμολογία",null,{"$f":"IFERROR(MAX(Βαθμολογίες[[#All],[Μέσος όρος]]),0)","v":{"v":1,"d":"100.0%"}},null,{"$f":"IFERROR(HLOOKUP(D23*ΣύνολοΒαθμών,ΠίνακαςΒαθμών,3),\"\")","v":"A+"},{"$f":"IFERROR(MAX(Βαθμολογίες[[#All],[GPA]]),0)","v":{"v":4,"d":"4.00"}},"","","","","","","","","","","","","","","","",""]
[null," Χαμηλότερη βαθμολογία",null,{"$f":"IFERROR(MIN(Βαθμολογίες[[#All],[Μέσος όρος]]),0)","v":{"v":0.91,"d":"91.0%"}},null,{"$f":"IFERROR(HLOOKUP(D24*ΣύνολοΒαθμών,ΠίνακαςΒαθμών,3),\"\")","v":"A-"},{"$f":"IFERROR(MIN(Βαθμολογίες[[#All],[GPA]]),0)","v":3.67},"","","","","","","","","","","","","","","","",""]